[Event "Titled Tuesday Blitz March 29 Late 2022"]
[White "Kostiukov, Alexandr"]
[Black "Petrova, Irina"]
[WhiteFideId "14108100"]
[BlackFideId "14124122"]
[WhiteElo "2202"]
[BlackElo "1993"]
[Result "0-1"]
[Round "06"]
[TimeControl "180+1"]
[Date "2022.03.30"]
[WhiteClock "0:00:07"]
[BlackClock "0:00:44"]

1. g3 {[%clk 0:03:00]}  d6 {[%clk 0:03:00]} 2. Bg2 {[%clk 0:02:59]}  e5 {[%clk 0:03:01]} 3. c4 {[%clk 0:02:59]}  Nc6 {[%clk 0:03:01]} 4. Nc3 {[%clk 0:03:00]}  f5 {[%clk 0:03:01]} 5. e3 {[%clk 0:03:00]}  Nf6 {[%clk 0:03:01]} 6. Nge2 {[%clk 0:03:00]}  g6 {[%clk 0:03:01]} 7. O-O {[%clk 0:03:00]}  Bg7 {[%clk 0:03:01]} 8. d4 {[%clk 0:03:01]}  e4 {[%clk 0:03:01]} 9. f3 {[%clk 0:02:58]}  exf3 {[%clk 0:02:58]} 10. Bxf3 {[%clk 0:02:59]}  O-O {[%clk 0:02:58]} 11. Nf4 {[%clk 0:02:57]}  Bd7 {[%clk 0:02:56]} 12. a3 {[%clk 0:02:42]}  Rb8 {[%clk 0:02:38]} 13. b4 {[%clk 0:02:41]}  Ne7 {[%clk 0:02:35]} 14. d5 {[%clk 0:02:36]}  g5 {[%clk 0:02:31]} 15. Ne6 {[%clk 0:02:28]}  Bxe6 {[%clk 0:02:31]} 16. dxe6 {[%clk 0:02:29]}  Ne4 {[%clk 0:02:20]} 17. Nxe4 {[%clk 0:01:29]}  fxe4 {[%clk 0:02:18]} 18. Bxe4 {[%clk 0:01:30]}  Bxa1 {[%clk 0:02:12]} 19. Qh5 {[%clk 0:01:24]}  Rxf1+ {[%clk 0:02:05]} 20. Kxf1 {[%clk 0:01:23]}  Qf8+ {[%clk 0:02:05]} 21. Kg2 {[%clk 0:01:23]}  Qg7 {[%clk 0:02:00]} 22. Bd3 {[%clk 0:01:06]}  Rf8 {[%clk 0:01:54]} 23. e4 {[%clk 0:01:06]}  Bd4 {[%clk 0:01:49]} 24. Bxg5 {[%clk 0:01:03]}  Rf2+ {[%clk 0:01:29]} 25. Kh3 {[%clk 0:01:02]}  Ng6 {[%clk 0:01:14]} 26. e7 {[%clk 0:00:55]}  Nxe7 {[%clk 0:01:13]} 27. Qe8+ {[%clk 0:00:54]}  Rf8 {[%clk 0:01:13]} 28. Qxe7 {[%clk 0:00:52]}  Qxe7 {[%clk 0:01:10]} 29. Bxe7 {[%clk 0:00:53]}  Rf3 {[%clk 0:01:06]} 30. Be2 {[%clk 0:00:50]}  Rxa3 {[%clk 0:01:04]} 31. Bg4 {[%clk 0:00:43]}  Kf7 {[%clk 0:01:01]} 32. Bd8 {[%clk 0:00:40]}  c6 {[%clk 0:01:01]} 33. Bh5+ {[%clk 0:00:33]}  Kg7 {[%clk 0:00:58]} 34. Kg4 {[%clk 0:00:23]}  b6 {[%clk 0:00:55]} 35. Be8 {[%clk 0:00:21]}  c5 {[%clk 0:00:53]} 36. b5 {[%clk 0:00:19]}  a5 {[%clk 0:00:50]} 37. bxa6 {[%clk 0:00:17]}  Rxa6 {[%clk 0:00:51]} 38. h4 {[%clk 0:00:14]}  Ra8 {[%clk 0:00:50]} 39. Bc6 {[%clk 0:00:06]}  Rxd8 {[%clk 0:00:49]} 40. Kf5 {[%clk 0:00:06]}  Rf8+ {[%clk 0:00:48]} 41. Ke6 {[%clk 0:00:07]}  Be5 {[%clk 0:00:48]} 42. g4 {[%clk 0:00:07]}  Rf6+ {[%clk 0:00:45]} 43. Kd7 {[%clk 0:00:07]}  Rf4 {[%clk 0:00:44]} 0-1


[Site "https://www.chess.com"]

[Event "Titled Tuesday Blitz March 29 Late 2022"]
[White "Lewtak, Damian"]
[Black "Cervantes Landeiro, Thalia"]
[WhiteFideId "1141724"]
[BlackFideId "3520498"]
[WhiteElo "2362"]
[BlackElo "2021"]
[Result "1-0"]
[Round "06"]
[TimeControl "180+1"]
[Date "2022.03.30"]
[WhiteClock "0:00:22"]
[BlackClock "0:00:02"]

1. d4 {[%clk 0:03:00]}  Nf6 {[%clk 0:02:57]} 2. Nf3 {[%clk 0:02:59]}  g6 {[%clk 0:02:56]} 3. Bf4 {[%clk 0:02:59]}  d5 {[%clk 0:02:55]} 4. e3 {[%clk 0:02:59]}  Bg7 {[%clk 0:02:55]} 5. h3 {[%clk 0:02:58]}  O-O {[%clk 0:02:54]} 6. c3 {[%clk 0:02:57]}  c5 {[%clk 0:02:54]} 7. Nbd2 {[%clk 0:02:56]}  b6 {[%clk 0:02:54]} 8. Bd3 {[%clk 0:02:54]}  Bb7 {[%clk 0:02:51]} 9. O-O {[%clk 0:02:51]}  Nc6 {[%clk 0:02:49]} 10. Re1 {[%clk 0:02:47]}  Nd7 {[%clk 0:02:47]} 11. Bg3 {[%clk 0:02:34]}  e5 {[%clk 0:02:45]} 12. dxe5 {[%clk 0:02:34]}  Ndxe5 {[%clk 0:02:45]} 13. Be2 {[%clk 0:02:33]}  d4 {[%clk 0:02:26]} 14. cxd4 {[%clk 0:02:30]}  cxd4 {[%clk 0:02:25]} 15. exd4 {[%clk 0:02:27]}  Nxf3+ {[%clk 0:02:13]} 16. Bxf3 {[%clk 0:02:28]}  Qxd4 {[%clk 0:02:08]} 17. Ne4 {[%clk 0:02:17]}  Rad8 {[%clk 0:01:45]} 18. Rc1 {[%clk 0:01:46]}  Nb4 {[%clk 0:01:36]} 19. Bd6 {[%clk 0:01:27]}  Nxa2 {[%clk 0:00:19]} 20. Qxd4 {[%clk 0:01:20]}  Bxd4 {[%clk 0:00:18]} 21. Rcd1 {[%clk 0:01:20]}  Bxb2 {[%clk 0:00:16]} 22. Bxf8 {[%clk 0:01:18]}  Rxd1 {[%clk 0:00:12]} 23. Rxd1 {[%clk 0:01:19]}  Kxf8 {[%clk 0:00:11]} 24. Rd2 {[%clk 0:01:17]}  Bxe4 {[%clk 0:00:11]} 25. Rxb2 {[%clk 0:01:02]}  Nc3 {[%clk 0:00:11]} 26. Bxe4 {[%clk 0:00:51]}  Nxe4 {[%clk 0:00:12]} 27. Ra2 {[%clk 0:00:52]}  a5 {[%clk 0:00:11]} 28. Rb2 {[%clk 0:00:52]}  Ke7 {[%clk 0:00:10]} 29. Rxb6 {[%clk 0:00:52]}  Nd6 {[%clk 0:00:09]} 30. Kf1 {[%clk 0:00:46]}  Nc4 {[%clk 0:00:09]} 31. Rb5 {[%clk 0:00:42]}  Kd6 {[%clk 0:00:07]} 32. Ke2 {[%clk 0:00:40]}  Kc6 {[%clk 0:00:06]} 33. Rb8 {[%clk 0:00:39]}  a4 {[%clk 0:00:04]} 34. Kd3 {[%clk 0:00:33]}  Ne5+ {[%clk 0:00:04]} 35. Kc3 {[%clk 0:00:33]}  Nd7 {[%clk 0:00:02]} 36. Ra8 {[%clk 0:00:26]}  Nc5 {[%clk 0:00:02]} 37. Ra7 {[%clk 0:00:22]} 1-0


[Site "https://www.chess.com"]

[Event "Titled Tuesday Blitz March 29 Late 2022"]
[White "Lin, Dachey"]
[Black "Omariev, Maksim"]
[WhiteFideId "2029650"]
[BlackFideId "4193423"]
[WhiteElo "2313"]
[BlackElo "2522"]
[Result "1-0"]
[Round "06"]
[TimeControl "180+1"]
[Date "2022.03.29"]
[WhiteClock "0:02:09"]
[BlackClock "0:00:28"]

1. g4 {[%clk 0:03:00]}  d5 {[%clk 0:02:31]} 2. Bg2 {[%clk 0:02:58]}  Bxg4 {[%clk 0:02:32]} 3. c4 {[%clk 0:02:57]}  c6 {[%clk 0:02:26]} 4. Qb3 {[%clk 0:02:57]}  e6 {[%clk 0:02:15]} 5. cxd5 {[%clk 0:02:57]}  exd5 {[%clk 0:01:58]} 6. Qxb7 {[%clk 0:02:56]}  Nd7 {[%clk 0:01:58]} 7. d4 {[%clk 0:02:56]}  Ngf6 {[%clk 0:01:46]} 8. Nc3 {[%clk 0:02:56]}  Rb8 {[%clk 0:01:01]} 9. Qxc6 {[%clk 0:02:55]}  Bb4 {[%clk 0:01:00]} 10. Nf3 {[%clk 0:02:42]}  O-O {[%clk 0:00:58]} 11. O-O {[%clk 0:02:42]}  Rb6 {[%clk 0:00:43]} 12. Qa4 {[%clk 0:02:37]}  Re8 {[%clk 0:00:42]} 13. Be3 {[%clk 0:02:28]}  Bxc3 {[%clk 0:00:37]} 14. bxc3 {[%clk 0:02:28]}  Ne4 {[%clk 0:00:37]} 15. Rac1 {[%clk 0:02:24]}  Rg6 {[%clk 0:00:36]} 16. Kh1 {[%clk 0:02:19]}  Ree6 {[%clk 0:00:32]} 17. c4 {[%clk 0:02:13]}  Nb6 {[%clk 0:00:28]} 18. Qa5 {[%clk 0:02:09]}  Nxc4 {[%clk 0:00:28]} 19. Qxd8+ {[%clk 0:02:09]} 1-0


[Site "https://www.chess.com"]

[Event "Titled Tuesday Blitz March 29 Late 2022"]
[White "Martin Duque, Jesus"]
[Black "Manolache, Marius"]
[WhiteFideId "2208954"]
[BlackFideId "1201530"]
[WhiteElo "2243"]
[BlackElo "2389"]
[Result "1-0"]
[Round "06"]
[TimeControl "180+1"]
[Date "2022.03.29"]
[WhiteClock "0:00:12"]
[BlackClock "0:00:24"]

1. Nf3 {[%clk 0:03:00]}  d5 {[%clk 0:02:58]} 2. b3 {[%clk 0:03:01]}  Bg4 {[%clk 0:02:55]} 3. e3 {[%clk 0:03:01]}  Nd7 {[%clk 0:02:54]} 4. Bb2 {[%clk 0:03:01]}  c6 {[%clk 0:02:52]} 5. h3 {[%clk 0:03:01]}  Bh5 {[%clk 0:02:52]} 6. d3 {[%clk 0:03:01]}  e6 {[%clk 0:02:51]} 7. Nbd2 {[%clk 0:03:00]}  a5 {[%clk 0:02:49]} 8. a3 {[%clk 0:02:58]}  Bg6 {[%clk 0:02:41]} 9. Qe2 {[%clk 0:02:56]}  Qb6 {[%clk 0:02:38]} 10. Nh4 {[%clk 0:02:54]}  Ngf6 {[%clk 0:02:34]} 11. g4 {[%clk 0:02:52]}  e5 {[%clk 0:02:30]} 12. Bg2 {[%clk 0:02:52]}  Be7 {[%clk 0:02:26]} 13. O-O {[%clk 0:02:26]}  Ng8 {[%clk 0:02:22]} 14. Nxg6 {[%clk 0:02:23]}  hxg6 {[%clk 0:02:22]} 15. c4 {[%clk 0:02:24]}  Ngf6 {[%clk 0:02:15]} 16. g5 {[%clk 0:02:17]}  Nh7 {[%clk 0:02:10]} 17. h4 {[%clk 0:02:09]}  Nhf8 {[%clk 0:02:09]} 18. Qg4 {[%clk 0:02:06]}  dxc4 {[%clk 0:01:59]} 19. Nxc4 {[%clk 0:01:58]}  Qxb3 {[%clk 0:01:59]} 20. Rab1 {[%clk 0:01:50]}  Qxd3 {[%clk 0:01:52]} 21. Nxe5 {[%clk 0:01:28]}  Qf5 {[%clk 0:01:45]} 22. Qg3 {[%clk 0:01:26]}  Ne6 {[%clk 0:01:19]} 23. Nxd7 {[%clk 0:01:19]}  Kxd7 {[%clk 0:01:18]} 24. Bh3 {[%clk 0:01:16]}  Qe4 {[%clk 0:01:17]} 25. Bxg7 {[%clk 0:01:13]}  Rxh4 {[%clk 0:01:14]} 26. Rxb7+ {[%clk 0:01:12]}  Ke8 {[%clk 0:01:12]} 27. Rfb1 {[%clk 0:00:42]}  Rd8 {[%clk 0:00:56]} 28. f4 {[%clk 0:00:32]}  Rxh3 {[%clk 0:00:46]} 29. Qxh3 {[%clk 0:00:31]}  Nxg7 {[%clk 0:00:36]} 30. Rb8 {[%clk 0:00:26]}  Nh5 {[%clk 0:00:30]} 31. Rxd8+ {[%clk 0:00:20]}  Bxd8 {[%clk 0:00:29]} 32. Rd1 {[%clk 0:00:15]}  Bb6 {[%clk 0:00:27]} 33. Qc8+ {[%clk 0:00:13]}  Ke7 {[%clk 0:00:24]} 34. Rd7+ {[%clk 0:00:13]}  Ke6 {[%clk 0:00:24]} 35. Rd4+ {[%clk 0:00:12]} 1-0


[Site "https://www.chess.com"]

[Event "Titled Tuesday Blitz March 29 Late 2022"]
[White "Meza, Anahi"]
[Black "Bernat, David"]
[WhiteFideId "111325"]
[BlackFideId "2099225"]
[WhiteElo "1968"]
[BlackElo "2309"]
[Result "1-0"]
[Round "06"]
[TimeControl "180+1"]
[Date "2022.03.30"]
[WhiteClock "0:00:37"]
[BlackClock "0:00:10"]

1. d4 {[%clk 0:03:00]}  d5 {[%clk 0:02:20]} 2. c4 {[%clk 0:02:59]}  e5 {[%clk 0:02:20]} 3. dxe5 {[%clk 0:02:58]}  d4 {[%clk 0:02:21]} 4. Nf3 {[%clk 0:02:59]}  Nc6 {[%clk 0:02:21]} 5. Bf4 {[%clk 0:02:58]}  Bb4+ {[%clk 0:02:15]} 6. Bd2 {[%clk 0:02:56]}  Qe7 {[%clk 0:02:10]} 7. g3 {[%clk 0:02:53]}  Nh6 {[%clk 0:02:06]} 8. Bg2 {[%clk 0:02:51]}  Ng4 {[%clk 0:02:06]} 9. O-O {[%clk 0:02:50]}  Ngxe5 {[%clk 0:02:04]} 10. Nxe5 {[%clk 0:02:50]}  Nxe5 {[%clk 0:02:00]} 11. Qa4+ {[%clk 0:02:45]}  Bd7 {[%clk 0:01:51]} 12. Qxb4 {[%clk 0:02:44]}  c5 {[%clk 0:01:49]} 13. Qxb7 {[%clk 0:02:35]}  O-O {[%clk 0:01:49]} 14. Qb3 {[%clk 0:02:27]}  Rab8 {[%clk 0:01:48]} 15. Qc2 {[%clk 0:02:27]}  Qf6 {[%clk 0:01:04]} 16. Bf4 {[%clk 0:02:20]}  Bf5 {[%clk 0:00:56]} 17. Qc1 {[%clk 0:01:59]}  Rb4 {[%clk 0:00:48]} 18. Nd2 {[%clk 0:01:55]}  Ng6 {[%clk 0:00:41]} 19. a3 {[%clk 0:01:44]}  Nxf4 {[%clk 0:00:37]} 20. gxf4 {[%clk 0:01:41]}  Rb6 {[%clk 0:00:35]} 21. Nf3 {[%clk 0:01:33]}  Rfb8 {[%clk 0:00:31]} 22. b4 {[%clk 0:01:20]}  cxb4 {[%clk 0:00:31]} 23. axb4 {[%clk 0:01:21]}  Rxb4 {[%clk 0:00:31]} 24. Ne5 {[%clk 0:01:04]}  Rb1 {[%clk 0:00:17]} 25. Qd2 {[%clk 0:00:55]}  Rxf1+ {[%clk 0:00:16]} 26. Rxf1 {[%clk 0:00:54]}  Qd6 {[%clk 0:00:15]} 27. Bd5 {[%clk 0:00:45]}  Be6 {[%clk 0:00:14]} 28. Qxd4 {[%clk 0:00:43]}  Bxd5 {[%clk 0:00:13]} 29. Qxd5 {[%clk 0:00:43]}  Qxd5 {[%clk 0:00:13]} 30. cxd5 {[%clk 0:00:43]}  Rd8 {[%clk 0:00:13]} 31. e4 {[%clk 0:00:43]}  f5 {[%clk 0:00:12]} 32. Nc6 {[%clk 0:00:40]}  Rd6 {[%clk 0:00:10]} 33. e5 {[%clk 0:00:37]}  Rxd5 {[%clk 0:00:10]} 34. Ne7+ {[%clk 0:00:37]} 1-0


[Site "https://www.chess.com"]

[Event "Titled Tuesday Blitz March 29 Late 2022"]
[White "Milanovic, Marko"]
[Black "Kalavannan, Koby"]
[WhiteFideId "980129"]
[BlackFideId "425753"]
[WhiteElo "2159"]
[BlackElo "1927"]
[Result "1-0"]
[Round "06"]
[TimeControl "180+1"]
[Date "2022.03.30"]
[WhiteClock "0:01:07"]
[BlackClock "0:00:02"]

1. e4 {[%clk 0:03:00]}  c5 {[%clk 0:03:00]} 2. Nf3 {[%clk 0:03:01]}  Nc6 {[%clk 0:03:00]} 3. Bb5 {[%clk 0:03:01]}  Nf6 {[%clk 0:03:01]} 4. Bxc6 {[%clk 0:03:01]}  dxc6 {[%clk 0:03:01]} 5. d3 {[%clk 0:03:01]}  Bg4 {[%clk 0:03:00]} 6. Nc3 {[%clk 0:03:00]}  c4 {[%clk 0:02:55]} 7. dxc4 {[%clk 0:02:54]}  Qxd1+ {[%clk 0:02:53]} 8. Kxd1 {[%clk 0:02:54]}  O-O-O+ {[%clk 0:02:51]} 9. Ke2 {[%clk 0:02:54]}  Nd7 {[%clk 0:02:49]} 10. h3 {[%clk 0:02:52]}  Bxf3+ {[%clk 0:02:40]} 11. gxf3 {[%clk 0:02:51]}  e5 {[%clk 0:02:39]} 12. Be3 {[%clk 0:02:50]}  Bc5 {[%clk 0:02:31]} 13. Rad1 {[%clk 0:02:50]}  Bxe3 {[%clk 0:02:29]} 14. fxe3 {[%clk 0:02:50]}  Nc5 {[%clk 0:02:29]} 15. Rxd8+ {[%clk 0:02:43]}  Rxd8 {[%clk 0:02:30]} 16. Rd1 {[%clk 0:02:44]}  Rxd1 {[%clk 0:02:11]} 17. Nxd1 {[%clk 0:02:45]}  Kd7 {[%clk 0:02:06]} 18. b3 {[%clk 0:02:42]}  Ke6 {[%clk 0:02:05]} 19. Nf2 {[%clk 0:02:42]}  Na6 {[%clk 0:01:58]} 20. Nd3 {[%clk 0:02:42]}  f6 {[%clk 0:01:51]} 21. Kd2 {[%clk 0:02:38]}  b6 {[%clk 0:01:49]} 22. Kc3 {[%clk 0:02:35]}  c5 {[%clk 0:01:37]} 23. a3 {[%clk 0:02:32]}  Kd6 {[%clk 0:01:36]} 24. b4 {[%clk 0:02:24]}  Nc7 {[%clk 0:01:36]} 25. Kb3 {[%clk 0:02:22]}  Ne6 {[%clk 0:01:35]} 26. h4 {[%clk 0:02:17]}  g5 {[%clk 0:01:33]} 27. h5 {[%clk 0:02:10]}  h6 {[%clk 0:01:28]} 28. Nf2 {[%clk 0:02:10]}  Ng7 {[%clk 0:01:24]} 29. Ng4 {[%clk 0:02:10]}  Nxh5 {[%clk 0:01:25]} 30. Nxh6 {[%clk 0:02:11]}  Ng3 {[%clk 0:01:18]} 31. Ng4 {[%clk 0:02:06]}  Nf1 {[%clk 0:00:35]} 32. Kc3 {[%clk 0:01:58]}  Ke6 {[%clk 0:00:32]} 33. Kd3 {[%clk 0:01:53]}  Ng3 {[%clk 0:00:27]} 34. c3 {[%clk 0:01:52]}  Nh5 {[%clk 0:00:22]} 35. Kc2 {[%clk 0:01:49]}  Ng3 {[%clk 0:00:21]} 36. Kd3 {[%clk 0:01:49]}  Nh5 {[%clk 0:00:20]} 37. Nh6 {[%clk 0:01:46]}  Ng3 {[%clk 0:00:18]} 38. Kd2 {[%clk 0:01:38]}  Nf1+ {[%clk 0:00:17]} 39. Ke2 {[%clk 0:01:36]}  Ng3+ {[%clk 0:00:17]} 40. Kf2 {[%clk 0:01:34]}  Nh5 {[%clk 0:00:18]} 41. Nf5 {[%clk 0:01:34]}  Kf7 {[%clk 0:00:07]} 42. Nd6+ {[%clk 0:01:26]}  Ke6 {[%clk 0:00:07]} 43. Nc8 {[%clk 0:01:26]}  cxb4 {[%clk 0:00:03]} 44. cxb4 {[%clk 0:01:27]}  a5 {[%clk 0:00:03]} 45. Nxb6 {[%clk 0:01:26]}  axb4 {[%clk 0:00:03]} 46. axb4 {[%clk 0:01:27]}  Ng7 {[%clk 0:00:04]} 47. Nd5 {[%clk 0:01:25]}  Ne8 {[%clk 0:00:04]} 48. Ke2 {[%clk 0:01:25]}  Nd6 {[%clk 0:00:04]} 49. Kd3 {[%clk 0:01:26]}  f5 {[%clk 0:00:05]} 50. c5 {[%clk 0:01:18]}  fxe4+ {[%clk 0:00:04]} 51. fxe4 {[%clk 0:01:17]}  Nc8 {[%clk 0:00:04]} 52. Ke2 {[%clk 0:01:12]}  Kd7 {[%clk 0:00:04]} 53. Kf3 {[%clk 0:01:10]}  Kc6 {[%clk 0:00:05]} 54. Kg4 {[%clk 0:01:10]}  Kb5 {[%clk 0:00:05]} 55. Kxg5 {[%clk 0:01:10]}  Na7 {[%clk 0:00:05]} 56. Kf5 {[%clk 0:01:09]}  Nc6 {[%clk 0:00:06]} 57. Ke6 {[%clk 0:01:09]}  Kc4 {[%clk 0:00:04]} 58. Kd6 {[%clk 0:01:09]}  Kb5 {[%clk 0:00:04]} 59. Nc7+ {[%clk 0:01:07]}  Kxb4 {[%clk 0:00:02]} 60. Kxc6 {[%clk 0:01:08]}  Kc4 {[%clk 0:00:02]} 61. Nd5 {[%clk 0:01:06]}  Kd3 {[%clk 0:00:02]} 62. Kd6 {[%clk 0:01:06]}  Kxe4 {[%clk 0:00:02]} 63. c6 {[%clk 0:01:07]} 1-0


[Site "https://www.chess.com"]

[Event "Titled Tuesday Blitz March 29 Late 2022"]
[White "Moskalenko, Alexander"]
[Black "Nazari, Arad"]
[WhiteFideId "4155351"]
[BlackFideId "12577324"]
[WhiteElo "2475"]
[BlackElo "2120"]
[Result "0-1"]
[Round "06"]
[TimeControl "180+1"]
[Date "2022.03.29"]
[WhiteClock "0:00:22"]
[BlackClock "0:00:47"]

1. Nf3 {[%clk 0:03:00]}  Nf6 {[%clk 0:02:54]} 2. e3 {[%clk 0:03:01]}  g6 {[%clk 0:02:53]} 3. b3 {[%clk 0:03:00]}  Bg7 {[%clk 0:02:54]} 4. Bb2 {[%clk 0:03:01]}  O-O {[%clk 0:02:54]} 5. Be2 {[%clk 0:03:01]}  d5 {[%clk 0:02:55]} 6. O-O {[%clk 0:03:01]}  c5 {[%clk 0:02:55]} 7. c4 {[%clk 0:03:01]}  Nc6 {[%clk 0:02:54]} 8. cxd5 {[%clk 0:03:01]}  Nxd5 {[%clk 0:02:52]} 9. Bxg7 {[%clk 0:03:02]}  Kxg7 {[%clk 0:02:52]} 10. d4 {[%clk 0:03:03]}  cxd4 {[%clk 0:02:52]} 11. Nxd4 {[%clk 0:03:03]}  Nxd4 {[%clk 0:02:51]} 12. Qxd4+ {[%clk 0:03:04]}  Nf6 {[%clk 0:02:52]} 13. Qxd8 {[%clk 0:02:57]}  Rxd8 {[%clk 0:02:52]} 14. Bf3 {[%clk 0:02:58]}  Rb8 {[%clk 0:02:52]} 15. Nc3 {[%clk 0:02:57]}  Bf5 {[%clk 0:02:49]} 16. Rfd1 {[%clk 0:02:56]}  Rdc8 {[%clk 0:02:49]} 17. Rac1 {[%clk 0:02:55]}  a6 {[%clk 0:02:44]} 18. e4 {[%clk 0:02:54]}  Bg4 {[%clk 0:02:43]} 19. Bxg4 {[%clk 0:02:54]}  Nxg4 {[%clk 0:02:44]} 20. f3 {[%clk 0:02:54]}  Ne5 {[%clk 0:02:40]} 21. f4 {[%clk 0:02:45]}  Nc6 {[%clk 0:02:40]} 22. Kf2 {[%clk 0:02:43]}  e5 {[%clk 0:02:38]} 23. g3 {[%clk 0:02:43]}  b5 {[%clk 0:02:21]} 24. Nd5 {[%clk 0:02:39]}  a5 {[%clk 0:02:15]} 25. Ke3 {[%clk 0:02:31]}  exf4+ {[%clk 0:02:05]} 26. gxf4 {[%clk 0:02:30]}  Nb4 {[%clk 0:02:03]} 27. Nxb4 {[%clk 0:02:30]}  axb4 {[%clk 0:02:03]} 28. e5 {[%clk 0:02:13]}  Rc3+ {[%clk 0:01:56]} 29. Rxc3 {[%clk 0:01:45]}  bxc3 {[%clk 0:01:57]} 30. b4 {[%clk 0:01:46]}  Ra8 {[%clk 0:01:56]} 31. Rc1 {[%clk 0:01:43]}  Rxa2 {[%clk 0:01:56]} 32. Rxc3 {[%clk 0:01:43]}  Rb2 {[%clk 0:01:56]} 33. Rc7 {[%clk 0:01:42]}  Kg8 {[%clk 0:01:52]} 34. Rc8+ {[%clk 0:01:43]}  Kg7 {[%clk 0:01:52]} 35. Rc7 {[%clk 0:01:44]}  Rb3+ {[%clk 0:01:51]} 36. Ke4 {[%clk 0:01:39]}  Rxb4+ {[%clk 0:01:50]} 37. Kf3 {[%clk 0:01:40]}  Kg8 {[%clk 0:01:43]} 38. Rc8+ {[%clk 0:01:40]}  Kg7 {[%clk 0:01:43]} 39. Rc7 {[%clk 0:01:40]}  Rb3+ {[%clk 0:01:43]} 40. Kf2 {[%clk 0:01:36]}  Kf8 {[%clk 0:01:35]} 41. Rb7 {[%clk 0:01:30]}  b4 {[%clk 0:01:33]} 42. Kg2 {[%clk 0:01:29]}  h5 {[%clk 0:01:30]} 43. Rb8+ {[%clk 0:01:24]}  Ke7 {[%clk 0:01:30]} 44. Rb7+ {[%clk 0:01:24]}  Ke6 {[%clk 0:01:29]} 45. Rb6+ {[%clk 0:01:25]}  Kf5 {[%clk 0:01:27]} 46. Rf6+ {[%clk 0:01:25]}  Kg4 {[%clk 0:01:26]} 47. Rxf7 {[%clk 0:01:26]}  Rb2+ {[%clk 0:01:26]} 48. Kf1 {[%clk 0:01:26]}  Kf3 {[%clk 0:01:26]} 49. Ke1 {[%clk 0:01:26]}  Rxh2 {[%clk 0:01:22]} 50. Kd1 {[%clk 0:01:25]}  b3 {[%clk 0:01:18]} 51. Kc1 {[%clk 0:01:25]}  h4 {[%clk 0:01:16]} 52. f5 {[%clk 0:01:16]}  gxf5 {[%clk 0:01:10]} 53. Rxf5+ {[%clk 0:01:15]}  Ke4 {[%clk 0:01:07]} 54. Rh5 {[%clk 0:01:14]}  Kd5 {[%clk 0:01:01]} 55. Kb1 {[%clk 0:01:14]}  h3 {[%clk 0:01:00]} 56. Ka1 {[%clk 0:01:13]}  Ra2+ {[%clk 0:00:50]} 57. Kb1 {[%clk 0:01:10]}  h2 {[%clk 0:00:50]} 58. Rh3 {[%clk 0:00:22]}  Rg2 {[%clk 0:00:48]} 59. e6 {[%clk 0:00:20]}  Kxe6 {[%clk 0:00:46]} 60. Rh6+ {[%clk 0:00:21]}  Kf5 {[%clk 0:00:46]} 61. Rxh2 {[%clk 0:00:22]}  Rxh2 {[%clk 0:00:46]} 62. Ka1 {[%clk 0:00:22]}  Ke4 {[%clk 0:00:46]} 63. Kb1 {[%clk 0:00:22]}  Kd3 {[%clk 0:00:47]} 0-1


[Site "https://www.chess.com"]

[Event "Titled Tuesday Blitz March 29 Late 2022"]
[White "Naroditsky, Daniel"]
[Black "Van Foreest, Jorden"]
[WhiteFideId "2026961"]
[BlackFideId "1039784"]
[WhiteElo "2608"]
[BlackElo "2609"]
[Result "0-1"]
[Round "06"]
[TimeControl "180+1"]
[Date "2022.03.29"]
[WhiteClock "0:00:01"]
[BlackClock "0:00:15"]

1. Nf3 {[%clk 0:03:00]}  d5 {[%clk 0:02:57]} 2. d4 {[%clk 0:03:00]}  Nf6 {[%clk 0:02:57]} 3. e3 {[%clk 0:03:01]}  e6 {[%clk 0:02:57]} 4. Bd3 {[%clk 0:03:01]}  Bd6 {[%clk 0:02:57]} 5. O-O {[%clk 0:03:01]}  O-O {[%clk 0:02:57]} 6. b3 {[%clk 0:03:02]}  b6 {[%clk 0:02:57]} 7. Bb2 {[%clk 0:03:03]}  Bb7 {[%clk 0:02:58]} 8. c4 {[%clk 0:03:03]}  c5 {[%clk 0:02:58]} 9. Nbd2 {[%clk 0:03:01]}  Nbd7 {[%clk 0:02:58]} 10. cxd5 {[%clk 0:02:58]}  exd5 {[%clk 0:02:57]} 11. Ne5 {[%clk 0:02:57]}  cxd4 {[%clk 0:02:55]} 12. exd4 {[%clk 0:02:57]}  Ne4 {[%clk 0:02:56]} 13. f3 {[%clk 0:02:47]}  Nxe5 {[%clk 0:02:51]} 14. Bxe4 {[%clk 0:02:09]}  dxe4 {[%clk 0:02:49]} 15. dxe5 {[%clk 0:02:09]}  Bc5+ {[%clk 0:02:47]} 16. Kh1 {[%clk 0:02:10]}  e3 {[%clk 0:02:21]} 17. Nc4 {[%clk 0:02:10]}  Qxd1 {[%clk 0:02:21]} 18. Rfxd1 {[%clk 0:02:11]}  Rad8 {[%clk 0:02:21]} 19. Re1 {[%clk 0:02:02]}  Rd3 {[%clk 0:02:10]} 20. Bc1 {[%clk 0:01:59]}  e2 {[%clk 0:02:09]} 21. Bf4 {[%clk 0:01:50]}  Rxf3 {[%clk 0:02:09]} 22. Bg3 {[%clk 0:01:40]}  Bf2 {[%clk 0:01:21]} 23. Rxe2 {[%clk 0:01:40]}  Bxg3 {[%clk 0:01:21]} 24. hxg3 {[%clk 0:01:40]}  Rxg3 {[%clk 0:01:22]} 25. Rd1 {[%clk 0:01:33]}  Bc6 {[%clk 0:01:10]} 26. Nd6 {[%clk 0:01:30]}  Rg6 {[%clk 0:01:07]} 27. Rc1 {[%clk 0:01:23]}  Bd5 {[%clk 0:01:07]} 28. Rc7 {[%clk 0:01:23]}  h5 {[%clk 0:00:40]} 29. Rxa7 {[%clk 0:01:15]}  h4 {[%clk 0:00:41]} 30. Nf5 {[%clk 0:01:06]}  Re8 {[%clk 0:00:28]} 31. Ne7+ {[%clk 0:00:48]}  Rxe7 {[%clk 0:00:27]} 32. Rxe7 {[%clk 0:00:49]}  h3 {[%clk 0:00:28]} 33. Rd7 {[%clk 0:00:48]}  hxg2+ {[%clk 0:00:26]} 34. Kg1 {[%clk 0:00:48]}  Bc6 {[%clk 0:00:26]} 35. Rd6 {[%clk 0:00:45]}  Kh7 {[%clk 0:00:24]} 36. Rxg6 {[%clk 0:00:39]}  Kxg6 {[%clk 0:00:25]} 37. e6 {[%clk 0:00:34]}  f5 {[%clk 0:00:15]} 38. e7 {[%clk 0:00:15]}  Kf7 {[%clk 0:00:15]} 39. a4 {[%clk 0:00:03]}  f4 {[%clk 0:00:14]} 40. e8=Q+ {[%clk 0:00:02]}  Bxe8 {[%clk 0:00:14]} 41. Kxg2 {[%clk 0:00:02]}  Bc6+ {[%clk 0:00:13]} 42. Kf2 {[%clk 0:00:03]}  g5 {[%clk 0:00:14]} 43. Rc2 {[%clk 0:00:02]}  Bd5 {[%clk 0:00:14]} 44. Rd2 {[%clk 0:00:01]}  Ke6 {[%clk 0:00:14]} 45. b4 {[%clk 0:00:02]}  g4 {[%clk 0:00:14]} 46. Rd3 {[%clk 0:00:01]}  g3+ {[%clk 0:00:15]} 0-1


[Site "https://www.chess.com"]